bitfinex/quotes_BTCUSD_20250314
["timestamp","ask_amount","ask_price","bid_price","bid_amount"]
[1741923320588,0.01639016,82142.0,82139.0,0.012174]
[1741923320796,0.00012319,82142.0,82139.0,0.012174]
[1741923321023,0.00012319,82142.0,82139.0,0.255661]
[1741923321204,0.00012319,82142.0,82139.0,0.012174]
[1741923321858,0.00012319,82142.0,82139.0,0.255661]
[1741923322067,0.01920064,82142.0,82139.0,0.255661]
[1741923322273,0.03613974,82142.0,82139.0,0.255661]
[1741923322635,0.03613974,82142.0,82140.0,0.001]
[1741923323041,0.03613974,82142.0,82139.0,0.014174]
[1741923323244,0.03613974,82142.0,82139.0,0.015174]
[1741923323645,0.03613974,82142.0,82139.0,0.012174]
[1741923323972,0.03613974,82142.0,82140.0,0.003]
[1741923324208,0.03613974,82142.0,82140.0,0.002]
[1741923324407,0.03613974,82142.0,82138.0,0.255664]
[1741923324408,0.03613974,82142.0,82139.0,0.243487]
[1741923324640,0.01706229,82142.0,82141.0,0.012174]
[1741923325260,0.00012319,82142.0,82141.0,0.089574]
[1741923325494,0.00012319,82142.0,82141.0,0.09079132]
[1741923326330,0.00012319,82142.0,82141.0,0.091574]
[1741923326676,0.00012319,82142.0,82141.0,0.095574]
[1741923327298,0.00012319,82142.0,82141.0,0.101574]
[1741923328901,0.00029229,82142.0,82141.0,0.101574]
[1741923330160,0.00029229,82142.0,82141.0,0.239254]
[1741923330872,0.00029229,82142.0,82141.0,0.22708]
[1741923330873,0.24377229,82142.0,82141.0,0.22708]
[1741923331077,0.25594629,82142.0,82141.0,0.14368]
[1741923331277,0.24377229,82142.0,82141.0,0.13768]
[1741923331484,0.00029229,82142.0,82141.0,0.14368]
[1741923332158,0.00029229,82142.0,82141.0,0.0219386]
[1741923332582,0.00029229,82142.0,82141.0,0.0279386]
[1741923332784,0.00029229,82142.0,82141.0,0.0219386]
[1741923332958,0.00029229,82142.0,82141.0,0.0159386]
[1741923333383,0.00029229,82142.0,82141.0,0.0209386]
[1741923333782,0.00029229,82142.0,82141.0,0.0259386]
[1741923333991,0.00029229,82142.0,82141.0,0.0331126]
[1741923334410,0.00029229,82142.0,82141.0,0.0381126]
[1741923335052,0.00029229,82142.0,82141.0,0.1172126]
[1741923337843,0.00029229,82142.0,82141.0,0.0381126]
[1741923340683,0.00029229,82142.0,82141.0,0.0384508]
[1741923342877,0.00029229,82142.0,82141.0,0.0262768]
[1741923343085,0.01246629,82142.0,82141.0,0.0262768]
[1741923345515,0.01246629,82142.0,82141.0,0.4195738]
[1741923345516,0.00029229,82142.0,82141.0,0.4195738]
[1741923348235,0.00029229,82142.0,82141.0,0.4966738]
[1741923351076,0.00029229,82142.0,82141.0,0.1589168]
[1741923351277,0.00029229,82142.0,82141.0,0.1710908]
[1741923351505,0.00029229,82142.0,82141.0,0.1770908]
[1741923351916,0.00029229,82142.0,82141.0,0.1720908]
[1741923352351,0.00029229,82142.0,82141.0,0.1770908]
[1741923352753,0.00029229,82142.0,82141.0,0.1720908]
[1741923353116,0.00029229,82142.0,82141.0,0.1780908]
[1741923354614,0.00029229,82142.0,82141.0,0.19263165]
[1741923355901,0.00029229,82142.0,82141.0,0.19384893]
[1741923356108,0.00029229,82142.0,82141.0,0.19263165]
[1741923357607,0.11650573,82151.0,82146.0,0.243467]
[1741923358043,0.555623,82152.0,82147.0,0.02782006]
[1741923358224,0.3,82152.0,82148.0,0.243463]
[1741923358427,0.3,82152.0,82147.0,0.02782006]
[1741923358675,0.57617933,82152.0,82146.0,0.243467]
[1741923359085,0.57617933,82152.0,82147.0,0.01564706]
[1741923359488,0.33272633,82152.0,82147.0,0.27128306]
[1741923360304,0.57617833,82152.0,82147.0,0.27128306]
[1741923360723,0.57617833,82152.0,82147.0,0.27428306]
[1741923361048,0.57617833,82152.0,82147.0,0.01864706]
[1741923361368,0.3,82149.0,82147.0,0.01864706]
[1741923362285,0.01907631,82149.0,82147.0,0.01864706]
[1741923362746,0.01907631,82149.0,82147.0,0.02264706]
[1741923362963,0.26253831,82149.0,82147.0,0.01964706]
[1741923363120,0.26253831,82149.0,82147.0,0.01564706]
[1741923363320,0.27471131,82149.0,82147.0,0.01964706]
[1741923363524,0.27471131,82149.0,82147.0,0.008]
[1741923363726,0.27471131,82149.0,82148.0,0.01566502]
[1741923364134,0.012173,82148.0,82147.0,0.008]
[1741923364549,0.012173,82148.0,82147.0,0.004]
[1741923365421,0.255638,82147.0,82146.0,0.13764]
[1741923366185,0.243479,82143.0,82141.0,0.0003382]
[1741923366381,0.255652,82143.0,82142.0,0.13764]
[1741923366557,0.255652,82143.0,82142.0,0.15330502]
[1741923367471,0.255652,82143.0,82142.0,0.15364322]
[1741923367878,0.20216738,82147.0,82142.0,0.15364322]
[1741923368081,0.20216738,82147.0,82142.0,0.15864322]
[1741923368460,0.012173,82143.0,82142.0,0.15864322]
[1741923369064,0.012173,82143.0,82142.0,0.16364322]
[1741923369269,0.243471,82145.0,82142.0,0.16364322]
[1741923369434,0.255644,82145.0,82142.0,0.15864322]
[1741923369629,0.21434038,82147.0,82142.0,0.15864322]
[1741923369892,0.01924541,82149.0,82143.0,0.012173]
[1741923370058,0.03141841,82149.0,82142.0,0.15864322]
[1741923370265,0.25565,82143.0,82142.0,0.15364322]
[1741923370458,0.25565,82143.0,82142.0,0.15764322]
[1741923370664,0.25565,82143.0,82142.0,0.15364322]
[1741923371065,0.25565,82143.0,82142.0,0.16264322]
[1741923371461,0.25565,82143.0,82142.0,0.15864322]
[1741923372542,0.25565,82143.0,82142.0,0.15364322]
[1741923372727,0.25565,82143.0,82142.0,0.16264322]
[1741923373991,0.012173,82144.0,82142.0,0.16264322]
[1741923374612,0.255649,82144.0,82142.0,0.16264322]
[1741923375593,0.255649,82144.0,82142.0,0.15764322]
[1741923375814,0.03141841,82149.0,82142.0,0.15364322]
[1741923376012,0.255638,82148.0,82142.0,0.15864322]
[1741923376315,0.25564,82147.0,82142.0,0.16264322]
[1741923376787,0.25564,82147.0,82142.0,0.15764322]
[1741923376925,0.25564,82147.0,82142.0,0.15364322]
[1741923377127,0.012173,82147.0,82142.0,0.40012322]
[1741923377323,0.012173,82147.0,82142.0,0.40312322]
[1741923377529,0.012173,82147.0,82142.0,0.39712322]
[1741923377786,0.255641,82147.0,82142.0,0.15364322]
[1741923378386,0.255641,82147.0,82142.0,0.39712122]
[1741923378604,0.01924541,82149.0,82143.0,0.012173]
[1741923378810,0.01924541,82149.0,82147.0,0.255637]
[1741923379221,0.01924541,82149.0,82148.0,0.01568263]
[1741923379423,0.01924541,82149.0,82148.0,0.02785563]
[1741923380064,0.0001691,82149.0,82148.0,0.02785563]
[1741923380464,0.0001691,82149.0,82148.0,0.03185563]
[1741923381082,0.0001691,82149.0,82148.0,0.01568263]
[1741923381291,0.2436291,82149.0,82148.0,0.01868263]
[1741923381516,0.0001691,82149.0,82148.0,0.01868263]
[1741923382644,0.75624354,82149.0,82148.0,0.01968263]
[1741923382916,0.6787021,82149.0,82148.0,0.004]
[1741923383095,0.69777897,82149.0,82148.0,0.008]
[1741923383530,0.69777897,82149.0,82148.0,0.004]
[1741923383861,0.55565,82143.0,82142.0,0.0003382]
[1741923386204,0.55565,82143.0,82142.0,0.0013382]
[1741923386687,0.55565,82143.0,82142.0,0.0033382]
[1741923392142,0.55565,82143.0,82142.0,0.0013382]
[1741923393222,0.55565,82143.0,82142.0,0.0003382]
[1741923394519,0.55565,82143.0,82111.0,0.0752]
[1741923394520,0.312174,82142.0,82111.0,0.0752]
[1741923394719,0.012177,82117.0,82111.0,0.0752]
[1741923394944,0.255731,82117.0,82116.0,0.13806139]
[1741923395149,0.555731,82117.0,82116.0,0.00046139]
[1741923395327,0.555731,82117.0,82116.0,0.01366716]
[1741923395553,0.555731,82117.0,82116.0,0.00046139]
[1741923396723,0.555731,82117.0,82116.0,0.00746139]
[1741923397153,0.555731,82117.0,82116.0,0.00446139]
[1741923397814,0.555731,82117.0,82116.0,0.00046139]
[1741923398035,0.57481281,82117.0,82116.0,0.00246139]
[1741923398493,0.58385108,82117.0,82116.0,0.00046139]
[1741923398719,0.58385108,82117.0,82116.0,0.00346139]
[1741923399087,0.58385108,82117.0,82116.0,0.00046139]
[1741923399704,0.58385108,82117.0,82116.0,0.00246139]
[1741923400311,0.58385108,82117.0,82116.0,0.00346139]
[1741923406409,0.32812008,82117.0,82116.0,0.00346139]
[1741923406840,0.32812008,82117.0,82116.0,0.01674772]
[1741923406969,0.01908181,82117.0,82116.0,0.01563839]
[1741923407179,0.012176,82123.0,82116.0,0.02892472]
[1741923407386,0.012176,82123.0,82117.0,0.012177]
[1741923407611,0.255709,82125.0,82121.0,0.243543]
[1741923407821,0.3,82124.0,82122.0,0.13764]
[1741923408061,0.3,82124.0,82122.0,0.15092633]
[1741923409326,0.555712,82124.0,82122.0,0.15092633]
[1741923409540,0.012176,82123.0,82122.0,0.15092633]
[1741923411117,0.012176,82123.0,82122.0,0.15292633]
[1741923411741,0.012176,82123.0,82122.0,0.13964]
[1741923412501,0.012176,82123.0,82122.0,0.14264]
[1741923413747,0.012176,82123.0,82122.0,0.005]
[1741923414438,0.087876,82123.0,82122.0,0.005]
[1741923414663,0.087876,82123.0,82122.0,0.003]
[1741923414905,0.087876,82123.0,82122.0,0.005]
[1741923415390,0.012177,82117.0,82116.0,0.00046139]
[1741923415559,0.555731,82117.0,82116.0,0.00046139]
[1741923416176,0.57481264,82117.0,82116.0,0.00046139]
[1741923417645,0.57481264,82117.0,82116.0,0.00146139]
[1741923418872,0.57481264,82117.0,82116.0,0.00246139]
[1741923420754,0.555731,82117.0,82116.0,0.00246139]
[1741923420869,0.67569189,82117.0,82116.0,0.00246139]
[1741923421273,0.80799189,82117.0,82116.0,3.9e-07]
[1741923421474,0.555778,82102.0,82101.0,0.0001691]
[1741923421701,0.555778,82102.0,82101.0,0.00029233]
[1741923422459,0.604378,82102.0,82101.0,0.00029233]
[1741923422661,0.7239395,82102.0,82101.0,0.00029233]
[1741923422912,0.7249395,82102.0,82101.0,0.00029233]
[1741923423087,0.73417995,82102.0,82101.0,0.00029233]
[1741923423292,0.73417995,82102.0,82101.0,1e-08]
[1741923423646,0.75326588,82102.0,82101.0,1e-08]
[1741923424251,0.75426588,82102.0,82101.0,1e-08]
[1741923424701,0.73517995,82102.0,82101.0,1e-08]
[1741923425106,0.56701845,82102.0,82101.0,1e-08]
[1741923426634,0.64381845,82102.0,82101.0,1e-08]
[1741923427037,0.69101845,82102.0,82101.0,1e-08]
[1741923428058,0.71010421,82102.0,82101.0,1e-08]
[1741923428455,0.555816,82090.0,82089.0,0.0001691]
[1741923429400,0.57490335,82090.0,82089.0,0.0001691]
[1741923429603,0.57490335,82090.0,82089.0,0.0021691]
[1741923430630,0.60047523,82090.0,82089.0,0.0021691]
[1741923431059,0.60047523,82090.0,82089.0,0.0041691]
[1741923431440,0.70106547,82090.0,82089.0,0.0021691]
[1741923431848,0.70106547,82090.0,82089.0,0.0001691]
[1741923432566,0.60047523,82090.0,82089.0,0.0001691]
[1741923432799,0.60047523,82090.0,82089.0,0.0011691]
[1741923433198,0.60047523,82090.0,82089.0,0.0001691]
[1741923436620,0.60047523,82090.0,82068.0,0.0472]
[1741923436621,0.555853,82078.0,82068.0,0.0472]
[1741923436819,0.012186,82060.0,82059.0,0.18474]
[1741923437049,0.25591,82060.0,82059.0,0.18474]
[1741923437255,0.25591,82060.0,82059.0,0.19856516]
[1741923437454,0.25591,82060.0,82059.0,0.18474]
[1741923437664,0.25591,82060.0,82059.0,0.19856516]
[1741923438257,0.25595098,82060.0,82059.0,0.01382516]
[1741923438648,0.012186,82059.0,82058.0,0.13768]
[1741923439200,0.312186,82059.0,82058.0,0.14932532]
[1741923439410,0.312186,82059.0,82058.0,0.01164532]
[1741923439795,0.312186,82057.0,82056.0,0.13768]
[1741923440542,0.3,82057.0,82056.0,0.14932532]
[1741923440746,0.0190936,82059.0,82056.0,0.21298]
[1741923440747,0.02817714,82059.0,82056.0,0.21298]
[1741923440949,0.02817714,82059.0,82056.0,0.22462532]
[1741923441154,0.243732,82058.0,82056.0,0.22562532]
[1741923441973,0.243732,82058.0,82056.0,0.22462532]
[1741923442545,0.243732,82058.0,82056.0,0.22562532]
[1741923443133,0.243732,82058.0,82056.0,0.22462532]
[1741923443830,0.2628226,82059.0,82058.0,0.012186]
[1741923443831,0.0190936,82059.0,82058.0,0.012186]
[1741923444034,4.098e-05,82060.0,82059.0,0.34595385]
[1741923444429,4.098e-05,82060.0,82059.0,0.35759917]
[1741923446466,4.098e-05,82060.0,82059.0,0.36359917]
[1741923447368,4.098e-05,82060.0,82059.0,0.36959917]
[1741923447592,4.098e-05,82060.0,82059.0,0.36359917]
[1741923447837,4.098e-05,82060.0,82059.0,0.36959917]
[1741923452127,0.3,82079.0,82076.0,0.243675]
[1741923452352,0.3,82079.0,82077.0,0.13768]
[1741923452556,0.3,82079.0,82077.0,0.14921575]
[1741923452759,0.00925541,82079.0,82077.0,0.14921575]
[1741923453145,0.3,82081.0,82077.0,0.14921575]
[1741923453420,0.543663,82081.0,82077.0,0.14921575]
[1741923453635,0.555846,82081.0,82077.0,0.14921575]
[1741923453836,0.312183,82079.0,82077.0,0.14921575]
[1741923454087,0.012183,82078.0,82077.0,0.15121575]
[1741923454441,0.012183,82078.0,82077.0,0.13968]
[1741923454649,0.012183,82078.0,82077.0,0.14068]
[1741923454851,0.012183,82078.0,82077.0,0.15121575]
[1741923455435,0.0312735,82078.0,82077.0,0.15221575]
[1741923455793,0.0312735,82078.0,82077.0,0.15021575]
[1741923455990,0.0312735,82078.0,82077.0,0.15121575]
[1741923456602,0.0312735,82078.0,82077.0,0.15021575]
[1741923456820,0.0190905,82078.0,82077.0,0.14921575]
[1741923457025,0.0190905,82078.0,82077.0,0.15121575]
[1741923457225,0.0190905,82078.0,82077.0,0.15321575]
[1741923458141,0.0312735,82078.0,82077.0,0.15321575]
[1741923464545,0.0190905,82078.0,82077.0,0.48487175]
[1741923464759,0.0003386,82090.0,82089.0,0.255819]
[1741923464987,0.02108152,82090.0,82089.0,0.02365788]
[1741923465236,0.0003386,82090.0,82089.0,0.26729588]
[1741923465475,0.0003386,82090.0,82089.0,0.48423588]
[1741923465703,0.0003386,82090.0,82089.0,0.52963588]
[1741923466852,0.0003386,82090.0,82089.0,0.53463588]
[1741923467536,0.0003386,82090.0,82089.0,0.53963588]
[1741923467778,0.0003386,82090.0,82089.0,0.57854711]
[1741923469370,0.255754,82110.0,82105.0,0.255769]
[1741923469591,0.25587725,82110.0,82106.0,0.13764]
[1741923469822,0.27614813,82110.0,82106.0,0.14901838]
[1741923470048,0.02039413,82110.0,82109.0,0.255756]
[1741923470721,0.02039413,82110.0,82109.0,0.26697994]
[1741923470976,0.00012325,82110.0,82109.0,0.26697994]
[1741923471202,0.00012325,82110.0,82109.0,0.38797814]
[1741923471668,0.00112325,82110.0,82109.0,0.38797814]
[1741923471891,0.00012325,82110.0,82109.0,0.38797814]
[1741923472369,0.00112325,82110.0,82109.0,0.38797814]
[1741923473223,0.00112325,82110.0,82109.0,0.39397814]
[1741923473441,0.00012325,82110.0,82109.0,0.39397814]
[1741923473868,0.00012325,82110.0,82109.0,0.39997814]
[1741923477876,0.00046185,82110.0,82109.0,0.39997814]
[1741923478100,0.00046185,82110.0,82109.0,0.53769814]
[1741923478333,0.00046185,82110.0,82109.0,0.39997814]
[1741923478603,0.00046185,82110.0,82109.0,0.53765814]
[1741923483415,0.0814,82148.0,82127.0,0.0793]
[1741923483682,0.012174,82140.0,82133.0,0.012175]
[1741923483906,0.01263538,82141.0,82134.0,0.255678]
[1741923484310,0.03301547,82141.0,82135.0,0.01101723]
[1741923484518,0.02084147,82141.0,82138.0,0.24349]
[1741923484919,0.02084147,82141.0,82139.0,0.243486]
[1741923485118,0.32084147,82141.0,82139.0,0.01101723]
[1741923485338,0.63496,82140.0,82139.0,0.01101723]
[1741923485556,0.255676,82135.0,82134.0,0.13756]
[1741923487147,0.255676,82135.0,82134.0,0.13856]
[1741923488319,0.555676,82135.0,82134.0,0.001]
[1741923488696,0.604276,82135.0,82134.0,0.001]
[1741923490712,0.6046144,82135.0,82134.0,0.001]
[1741923494383,0.0489384,82135.0,82134.0,0.001]
[1741923494560,0.0611134,82135.0,82134.0,0.001]
[1741923494760,0.3046144,82135.0,82134.0,0.001]
[1741923495804,0.3848144,82135.0,82134.0,0.001]
[1741923496143,0.3848144,82135.0,82102.0,0.77336]
[1741923496144,0.255753,82110.0,82102.0,0.77336]
[1741923496355,0.255753,82110.0,82109.0,0.1377292]
[1741923496740,0.243575,82110.0,82109.0,0.1377292]
[1741923496883,0.255753,82110.0,82109.0,0.1377292]
[1741923497084,0.27688292,82110.0,82109.0,0.14870262]
[1741923497289,0.27688292,82110.0,82109.0,0.15470262]
[1741923497509,0.27697788,82110.0,82109.0,0.15470262]
[1741923498238,0.57697788,82110.0,82109.0,0.01714262]
[1741923498459,0.65477788,82110.0,82109.0,0.02314262]
[1741923498703,0.65477788,82110.0,82109.0,0.0121692]
[1741923499407,0.65477788,82110.0,82106.0,0.02406779]
[1741923499408,0.555763,82107.0,82106.0,0.02406779]
[1741923499607,0.255828,82086.0,82085.0,0.13756]
[1741923500998,0.255828,82086.0,82085.0,0.14356]
[1741923502539,0.03126648,82092.0,82085.0,0.14356]
[1741923502540,0.243605,82101.0,82088.0,0.012182]
[1741923502702,0.243624,82094.0,82087.0,0.012182]
[1741923502905,0.243629,82092.0,82088.0,1.5]
[1741923503124,0.243629,82092.0,82087.0,0.012182]
[1741923503524,0.243634,82091.0,82086.0,0.326746]
[1741923503775,0.243634,82091.0,82086.0,0.338928]
[1741923503985,0.243634,82091.0,82086.0,0.0831]
[1741923504190,0.243637,82090.0,82086.0,0.0831]
[1741923505195,0.24364,82089.0,82086.0,0.0831]
[1741923505372,0.243646,82086.0,82085.0,0.14056]
[1741923505571,0.243646,82086.0,82085.0,0.13756]
[1741923506356,0.24364,82089.0,82085.0,0.16171232]
[1741923506786,0.243642,82088.0,82085.0,0.16671232]
[1741923507139,0.243642,82088.0,82085.0,0.16171232]
[1741923507315,0.243642,82088.0,82086.0,0.004]
[1741923507518,0.243627,82093.0,82086.0,0.004]
[1741923507753,0.012181,82094.0,82085.0,0.17789432]
[1741923507921,0.012181,82091.0,82085.0,0.16571232]
[1741923508128,0.012181,82091.0,82085.0,0.16971232]
[1741923508330,0.24364,82089.0,82085.0,0.16971232]
[1741923508561,0.24364,82089.0,82085.0,0.16571232]
[1741923508728,0.24364,82089.0,82086.0,0.003]
[1741923509064,0.24364,82089.0,82085.0,0.16171232]
[1741923509272,0.24364,82089.0,82085.0,0.16671232]
[1741923509640,0.24364,82089.0,82085.0,0.16171232]
[1741923510105,0.24364,82089.0,82086.0,0.004]
[1741923510547,0.24364,82089.0,82085.0,0.16171232]
[1741923510924,0.243642,82088.0,82085.0,0.16171232]
[1741923511072,0.243642,82088.0,82085.0,0.16571232]
[1741923511274,0.243642,82088.0,82085.0,0.16871232]
[1741923511467,0.243642,82088.0,82086.0,0.00935786]
[1741923511673,0.255824,82088.0,82086.0,0.00935786]
[1741923512123,0.012185,82064.0,82034.0,0.50699]
[1741923512296,0.012185,82064.0,82054.0,0.012187]
[1741923512297,0.3,82064.0,82054.0,0.012187]
[1741923512510,0.012185,82066.0,82057.0,0.138]
[1741923512708,0.243712,82064.0,82062.0,0.138]
[1741923512933,0.255897,82064.0,82062.0,0.138]
[1741923513138,0.255897,82064.0,82055.0,0.02487396]
[1741923513374,0.255897,82064.0,82063.0,0.13829255]
[1741923514208,0.27707496,82064.0,82063.0,0.13829255]
[1741923514412,0.27707496,82064.0,82063.0,0.14229255]
[1741923515709,0.27707496,82064.0,82063.0,0.14529255]
[1741923516906,0.27707496,82064.0,82047.0,0.10865988]
[1741923516907,0.243759,82048.0,82047.0,0.10865988]
[1741923517050,0.555946,82048.0,82047.0,0.10865988]
[1741923517245,0.555946,82048.0,82047.0,0.10907065]
[1741923518172,0.557946,82048.0,82047.0,0.00041077]
[1741923518580,0.555946,82048.0,82047.0,0.00041077]
[1741923518876,0.556946,82048.0,82047.0,0.00041077]
[1741923519182,0.555946,82048.0,82047.0,0.00041077]
[1741923520011,0.57504247,82048.0,82047.0,0.00041077]
[1741923520847,0.56685547,82048.0,82047.0,0.00041077]
[1741923521231,0.32309647,82048.0,82047.0,0.00041077]
[1741923521472,0.32109647,82048.0,82047.0,0.00041077]
[1741923521694,0.31909647,82048.0,82047.0,0.00734588]
[1741923522025,0.31909647,82048.0,82047.0,0.00834588]
[1741923522208,0.31909647,82048.0,82047.0,0.00734588]
[1741923522611,0.31909647,82048.0,82047.0,0.00934588]
[1741923522807,0.01909647,82048.0,82047.0,0.00934588]
[1741923523228,0.01909647,82048.0,82047.0,0.02153388]
[1741923523430,0.05566416,82048.0,82047.0,0.00934588]
[1741923523635,0.33476467,82048.0,82047.0,0.00241077]
[1741923523838,0.255946,82048.0,82047.0,0.00241077]
[1741923525322,0.255946,82048.0,82047.0,0.00041077]
[1741923525486,0.255946,82048.0,82047.0,0.00141077]
[1741923525691,0.255946,82048.0,82047.0,0.00241077]
[1741923526526,0.255946,82048.0,82047.0,0.00258007]
[1741923526936,0.555946,82048.0,82047.0,0.00258007]
[1741923527484,0.3,82048.0,82047.0,0.00258007]
[1741923527855,0.012187,82052.0,82047.0,0.02051675]
[1741923528051,0.012187,82052.0,82047.0,0.00258007]
[1741923528052,0.25594,82051.0,82047.0,0.00258007]
[1741923528227,0.255937,82052.0,82048.0,0.00574868]
[1741923528434,0.012187,82053.0,82048.0,0.00574868]
[1741923528631,0.012187,82052.0,82048.0,0.00574868]
[1741923528936,0.255935,82052.0,82048.0,0.00574868]
[1741923529260,0.243744,82053.0,82048.0,0.00574868]
[1741923529559,0.01909433,82055.0,82052.0,0.243747]
[1741923529717,0.01909433,82055.0,82054.0,0.012187]
[1741923529918,0.01909433,82055.0,82054.0,0.01791442]
[1741923530122,0.3,82060.0,82057.0,0.255917]
[1741923530316,0.3,82060.0,82059.0,0.012186]
[1741923530835,0.3,82060.0,82059.0,0.01791342]
[1741923531337,0.2627966,82067.0,82059.0,0.01791342]
[1741923531338,0.3,82064.0,82060.0,0.243724]
[1741923531552,0.543724,82060.0,82059.0,0.00572742]
[1741923531761,0.55591,82060.0,82059.0,0.00672742]
[1741923532317,0.55591,82060.0,82059.0,0.00572742]
[1741923532621,0.555915,82059.0,82053.0,0.394609]
[1741923533964,0.555915,82059.0,82053.0,0.41850038]
[1741923534185,0.012186,82059.0,82054.0,0.255926]
[1741923535342,0.255896,82065.0,82057.0,0.012186]
[1741923535580,0.255905,82062.0,82057.0,0.012186]
[1741923536552,0.255901,82063.0,82057.0,0.255916]
[1741923537573,0.255905,82062.0,82057.0,0.255916]
[1741923537735,0.255905,82062.0,82057.0,0.012186]
[1741923537940,0.012185,82068.0,82058.0,0.012186]
[1741923537941,0.255885,82068.0,82058.0,0.012186]
[1741923538140,0.3,82068.0,82063.0,0.255898]
[1741923538405,0.012184,82071.0,82065.0,0.255892]
[1741923538622,0.3,82073.0,82070.0,0.255877]
[1741923538857,0.243665,82080.0,82074.0,0.243679]
[1741923539085,0.255856,82078.0,82075.0,0.13836]
[1741923539702,0.012183,82078.0,82075.0,0.13736]
[1741923540033,0.012183,82078.0,82075.0,0.13636]
[1741923540240,0.255855,82078.0,82075.0,0.13636]
[1741923540444,0.27269891,82079.0,82075.0,0.380038]
[1741923540645,0.27269891,82079.0,82075.0,0.13636]
[1741923541476,0.27269891,82079.0,82075.0,0.14036]
[1741923541673,0.27269891,82079.0,82076.0,0.00565697]
[1741923543083,0.27269891,82079.0,82076.0,0.00965697]
[1741923543259,0.243672,82078.0,82076.0,0.01265697]
[1741923544434,0.255855,82078.0,82076.0,0.01265697]
[1741923544664,0.255855,82078.0,82076.0,0.00565697]
[1741923544884,0.012183,82077.0,82076.0,0.00565697]
[1741923545074,0.255853,82079.0,82076.0,0.01365697]
[1741923545293,0.255853,82079.0,82076.0,0.00965697]
[1741923545522,0.24367,82079.0,82076.0,0.00565697]
[1741923545717,0.57493684,82081.0,82076.0,0.00865697]
[1741923545979,0.57493684,82081.0,82076.0,0.25332997]
[1741923545980,0.56275384,82081.0,82076.0,0.25332997]
[1741923546220,0.56275384,82081.0,82077.0,0.012183]
[1741923546480,0.57493684,82081.0,82076.0,0.25232997]
[1741923546688,0.57493684,82081.0,82076.0,0.243673]
[1741923546910,0.00121867,82080.0,82077.0,0.00565697]
[1741923547356,0.01819165,82080.0,82077.0,0.00565697]
[1741923547551,0.00121867,82080.0,82077.0,0.00565697]
[1741923548080,0.243669,82079.0,82077.0,0.00565697]
[1741923548459,0.255852,82079.0,82077.0,0.00565697]
[1741923548660,0.255852,82079.0,82077.0,0.01165697]
[1741923548819,0.255852,82079.0,82077.0,0.006]
[1741923549025,0.255852,82079.0,82078.0,0.00552039]
[1741923549528,0.255852,82079.0,82077.0,0.003]
[1741923549753,0.012183,82078.0,82077.0,0.006]
[1741923551295,0.012183,82078.0,82077.0,0.003]
[1741923551881,0.012183,82078.0,82075.0,0.1365291]
[1741923552081,0.26026798,82080.0,82077.0,0.003]
[1741923552287,0.26026798,82080.0,82078.0,0.003]
[1741923552537,0.27245098,82080.0,82078.0,0.003]
[1741923552829,0.27245098,82080.0,82079.0,0.13776]
[1741923555037,0.27245098,82080.0,82079.0,0.14076]
[1741923555433,0.27245098,82080.0,82079.0,0.14376]
[1741923555603,0.02878498,82080.0,82079.0,0.14376]
[1741923555807,0.03000365,82080.0,82079.0,0.14376]
[1741923556655,0.27366965,82080.0,82079.0,0.14928039]
[1741923556955,0.27245098,82080.0,82079.0,0.14928039]
[1741923559425,0.26026798,82080.0,82079.0,0.14928039]
[1741923559604,0.01660198,82080.0,82079.0,0.14928039]
[1741923559956,0.01908984,82081.0,82080.0,0.243664]
[1741923560163,0.01908984,82081.0,82080.0,0.02003262]
[1741923560375,0.59164845,82081.0,82080.0,0.00549177]
[1741923560827,0.012183,82080.0,82079.0,0.14376]
[1741923561084,0.01340167,82080.0,82079.0,0.14076]
[1741923561405,0.01340167,82080.0,82079.0,0.13776]
[1741923562166,0.01340167,82080.0,82079.0,0.14176]
[1741923564515,0.01340167,82080.0,82079.0,0.1419291]
[1741923565014,0.01373987,82080.0,82079.0,0.1419291]
[1741923567123,0.36343987,82080.0,82079.0,0.0041691]
[1741923567333,0.4381212,82080.0,82079.0,0.0041691]
[1741923567911,0.4381212,82080.0,82079.0,0.0021691]
[1741923568115,0.4381212,82080.0,82079.0,0.0011691]
[1741923568706,0.4381212,82080.0,82079.0,0.0001691]
[1741923570178,0.45721172,82080.0,82079.0,0.0001691]
[1741923570377,0.57060706,82080.0,82079.0,0.0001691]
[1741923570901,0.45721172,82080.0,82079.0,0.0001691]
[1741923571259,0.45821172,82080.0,82079.0,0.0001691]
[1741923571998,0.45721172,82080.0,82079.0,0.0001691]
[1741923572225,0.45921172,82080.0,82079.0,0.0001691]
[1741923572636,0.33361172,82080.0,82079.0,0.0001691]
[1741923574941,0.33161172,82080.0,82079.0,0.0001691]
[1741923583544,0.0003382,82080.0,82079.0,0.0001691]
[1741923583667,0.5440022,82080.0,82079.0,0.0001691]
[1741923583867,0.3003382,82080.0,82079.0,0.00574763]
[1741923584280,0.3125212,82080.0,82079.0,0.00574763]
[1741923584503,0.3125212,82080.0,82079.0,0.0001691]
[1741923584888,0.3125212,82080.0,82079.0,0.0021691]
[1741923585144,0.3003382,82080.0,82079.0,0.0021691]
[1741923585442,0.3003382,82080.0,82079.0,0.0031691]
[1741923586834,0.31942718,82080.0,82079.0,0.0031691]
[1741923587261,0.33161018,82080.0,82079.0,0.0031691]
[1741923588508,0.31942718,82080.0,82079.0,0.0031691]
[1741923595015,0.01942718,82080.0,82079.0,0.10889295]
[1741923595284,0.0003386,82089.0,82088.0,0.27036285]
[1741923595434,0.0003386,82089.0,82088.0,0.40800285]
[1741923596420,0.0003386,82089.0,82088.0,0.49040285]
[1741923596755,0.0003386,82089.0,82088.0,0.48740285]
[1741923597466,0.0003386,82089.0,82088.0,0.49140285]
[1741923598425,0.0003386,82089.0,82088.0,0.49640285]
[1741923599633,0.0003386,82089.0,82088.0,0.91590285]
[1741923600263,0.255731,82118.0,82109.0,0.255756]
[1741923600476,0.00121867,82117.0,82110.0,0.13764]
[1741923600686,0.01533389,82118.0,82115.0,0.243559]
[1741923600888,0.01908219,82116.0,82113.0,0.255744]
[1741923601120,0.01908219,82116.0,82114.0,0.255739]
[1741923601332,0.01908219,82116.0,82110.0,0.13764]
[1741923601333,0.24356,82115.0,82110.0,0.393391]
[1741923601478,0.03125919,82116.0,82110.0,0.13764]
[1741923601681,0.012178,82113.0,82110.0,0.13764]
[1741923602096,0.243587,82106.0,82098.0,0.01218]
[1741923602296,0.01339767,82105.0,82099.0,0.13764]
[1741923602676,0.243599,82102.0,82099.0,0.16224599]